Cogmind - Beta 14 @@@ ROGUE MODE // 2024.10.01 @ 20:17:16 Player: CONM Result: Destroyed by Y-64 Sentinel with Wave Gun Performance ------------- Evolutions (5) 2500 Regions Visited (8) 1600 Robots Destroyed (54) 270 Value Destroyed (1683) 1683 Prototype IDs (3) 60 Alien Tech Used (0) 0 Bonus (33) 33 TOTAL SCORE: 6146 Bonus ------- High Alert Combat Kills 33 Cogmind --------- Core Integrity 0/1000 Matter 174/300 Energy 150/150 System Corruption 2% Temperature Cool (36) Movement Core (100) Ox1 Location -5/Extension Parts ------- > --- POWER (1) -------- Micro Fission Core > --- PROPULSION (5) --- (None) > --- UTILITY (7) ------ (None) > --- WEAPON (4) ------- (None) > --- INVENTORY (5) ---- Improved Actuator Array Point Defense System Peak State ------------ > --- POWER ------------ Micro Nuclear Core > --- PROPULSION ------- Airjet Aerolev Unit Aerolev Unit Improved Airjet Linear Gravjet > --- UTILITY ---------- Large Storage Unit Weight Redist. System Structural Scanner Improved Melee Analysis Suite Hardened Light Armor Plating Advanced System Shield > --- WEAPON ----------- Smartbomb Launcher Impact Mace Impact Mace > --- INVENTORY -------- Neutrino Core Armored Wheel Medium Storage Unit Improved Melee Analysis Suite Improved Melee Analysis Suite Improved Actuator Array Force Booster Point Defense System Rocket Launcher Mini Grenade Launcher Great Axe Spear Spear Spear [Rating: 69] Favorites ----------- Power Light Ion Engine Engine Light Ion Engine Power Core Micro Nuclear Core Propulsion Aerolev Unit Treads Light Treads Leg Aluminum Leg Wheel Armored Wheel Hover Unit Aerolev Unit Utility Improved Melee Analysis Suite Device Weight Redist. System Storage Medium Storage Unit Processor Improved Melee Analysis Suite Hackware Advanced System Shield Protection Hardened Light Armor Plating Weapon Impact Mace Ballistic Gun Assault Rifle Launcher Rocket Launcher Impact Weapon Impact Mace Slashing Weapon Great Axe Piercing Weapon Spear Build | -11 -10 -9 -9 -8 -7 -6 -5 -5 ------- Run | Yrd Mat Mat Min Mat Fac Fac Fac Ext Slots Evolved 10 | . . 2 . 2 2 2 2 . Power . | . . . . . . . . . Propulsion 3 | . . 1 . 1 . . 1 . Utility 5 | . . 1 . . 1 2 1 . Weapon 2 | . . . . 1 1 . . . Parts Attached 85 | 7 4 8 . 5 27 11 11 12 Power 4 | 1 . . . . 1 1 . 1 Engine 1 | 1 . . . . . . . . Core 3 | . . . . . 1 1 . 1 Reactor . | . . . . . . . . . Propulsion 26 | 2 2 6 . 4 6 2 2 2 Treads 2 | 2 . . . . . . . . Leg 2 | . 2 . . . . . . . Wheel 1 | . . . . . . . . 1 Hover 21 | . . 6 . 4 6 2 2 1 Flight . | . . . . . . . . . Utility 29 | 2 . 1 . . 13 6 4 3 Device 11 | 1 . 1 . . 2 4 2 1 Storage 7 | 1 . . . . 4 1 1 . Processor 3 | . . . . . 2 . . 1 Hackware 1 | . . . . . . . 1 . Protection 7 | . . . . . 5 1 . 1 Artifact . | . . . . . . . . . Weapon 26 | 2 2 1 . 1 7 2 5 6 Energy Gun . | . . . . . . . . . Energy Cannon . | . . . . . . . . . Ballistic Gun 4 | 2 1 . . 1 . . . . Ballistic Cannon . | . . . . . . . . . Launcher 6 | . . . . . 1 1 2 2 Special Weapon . | . . . . . . . . . Impact Weapon 6 | . 1 1 . . 4 . . . Slashing Weapon 5 | . . . . . 2 1 1 1 Piercing Weapon 5 | . . . . . . . 2 3 Special Melee Weapon . | . . . . . . . . . Unidentified Prototypes 3 | . . . . 1 1 . 1 . Corrupted Parts 1 | . . . . . 1 . . . System Corruption 12 | . . . . . 12 . . . Parts Lost 28 | . . . . 1 10 1 1 15 Power 3 | . . . . . 2 . . 1 Propulsion 12 | . . . . 1 2 1 1 7 Utility 9 | . . . . . 5 . . 4 Weapon 4 | . . . . . 1 . . 3 Highest Loss Streak 8 | . . . . 1 2 1 1 8 To Critical Strikes . | . . . . . . . . . Average Slot Usage (%) 86 | . 99 84 88 87 92 94 76 62 Engine 3 | . 14 11 11 9 1 . . . Core 3 | . . . . . 4 6 5 4 Treads 2 | . 16 . . . . . . . Leg 1 | . 10 . . . . . . . Hover 22 | . . 29 33 33 29 25 24 15 Device 9 | . 14 11 11 9 3 22 11 4 Storage 7 | . 14 11 11 9 7 6 5 4 Processor 4 | . . . . . 6 6 5 5 Protection 4 | . . . . . 7 1 5 3 Ballistic Gun 4 | . 25 5 . 9 1 . . . Impact Weapon 13 | . 2 16 22 18 19 17 11 2 Slashing Weapon 3 | . . . . . 5 5 1 3 Piercing Weapon 1 | . . . . . . . . 8 Peak Build Rating 69 | 7 8 12 12 21 53 58 69 64 Average Rating 35 | 5 7 9 11 17 42 53 48 43 On Entrance 23 | . 7 7 12 12 19 44 46 64 Naked Turns 32 | . . . . . . . . 32 Heaviest Build 46 | 12 13 13 13 15 42 37 46 44 Greatest Support 48 | 40 40 21 21 31 34 39 48 48 Greatest Overweight (x) 3 | 1 1 . . . 1 1 1 3 Average Overweight (x) . | . . . . . . . . . Largest Inventory Capacity 15 | 8 8 8 8 8 10 15 15 15 Average Capacity 10 | 7 8 8 8 8 9 10 14 13 Most Carried 15 | 1 8 8 8 8 10 10 15 13 Average Carried 8 | . 5 6 7 7 9 9 13 9 Final Capacity 15 | 8 8 8 8 8 10 10 15 5 Final Carried 12 | 1 8 8 8 8 10 10 12 2 Class Distribution -------------------- 65% | Gladiator 33% | Mutant Dominant Class ---------------- Mutant | -10/Materials Mutant | -9/Materials Mutant | -9/Mines Mutant | -8/Materials Gladiator | -7/Factory Gladiator | -6/Factory Gladiator | -5/Factory Gladiator | -5/Extension Resources | -11 -10 -9 -9 -8 -7 -6 -5 -5 ----------- Run | Yrd Mat Mat Min Mat Fac Fac Fac Ext Matter Collected 1210 | 253 57 . 84 132 351 143 . 190 Remotely . | . . . . . . . . . Salvage Created 1848 | 17 172 . . 182 872 254 57 294 Parts 91 | 3 9 . . 5 59 3 2 10 Haulers Intercepted 6 | . . . . 1 4 1 . . Recyclers Shooed 2 | 1 1 . . . . . . . Parts Field Recycled . | . . . . . . . . . Retrieved Matter . | . . . . . . . . . Parts Self-Destructed . | . . . . . . . . . Prevented . | . . . . . . . . . Kills | -11 -10 -9 -9 -8 -7 -6 -5 -5 ------- Run | Yrd Mat Mat Min Mat Fac Fac Fac Ext Combat Hostiles Destroyed 36 | . 3 . . 1 19 1 4 8 Melee 14 | . . . . 1 9 . . 4 Guns 2 | . 2 . . . . . . . AOE 16 | . . . . . 8 . 4 4 Classes Destroyed 11 | 1 3 . . 3 4 . . . Worker 1 | . 1 . . . . . . . Builder 6 | . . . . 1 5 . . . Tunneler 1 | 1 . . . . . . . . Hauler 6 | . . . . 1 4 1 . . Recycler 2 | . . . . 1 . 1 . . Watcher 2 | . 2 . . . . . . . Swarmer 12 | . . . . . 8 . 4 . Grunt 18 | . 3 . . 1 7 . . 7 Brawler 1 | . . . . . 1 . . . Sentry 3 | . . . . . 1 1 . 1 Programmer 2 | . . . . . 2 . . . Best Kill Streak 5 | 1 3 . . 2 5 1 4 5 Combat Bots Only 5 | . 2 . . 1 5 1 4 5 Max Kills in Single Turn 3 | 1 2 . . 1 3 1 2 3 Gunslinging . | . . . . . . . . . Exploded 3 | . . . . . 3 . 2 3 Melee 1 | . . . . 1 1 . . 1 Uniques/NPCs Destroyed . | . . . . . . . . . Combat | -11 -10 -9 -9 -8 -7 -6 -5 -5 -------- Run | Yrd Mat Mat Min Mat Fac Fac Fac Ext Hostile Shots Fired 375 | . 12 . . 21 133 36 6 167 Missed 142 | . 3 . . 10 47 19 1 62 Damage Taken 4603 | . 118 . . 165 1932 156 145 2087 Core 1326 | . . . . . 262 49 42 973 Absorbed by Shields . | . . . . . . . . . Redirected to Shielding 111 | . . . . . 111 . . . Core Remaining (%) 92 | 100 100 . 100 100 62 94 . . Volleys Fired 45 | 8 10 . . . 14 2 2 9 Largest 2 | 2 2 . . . 1 1 1 2 Hottest 63 | 40 40 . . . 33 33 33 63 Shots Fired 65 | 16 20 . . . 15 2 2 10 Gun 43 | 16 20 . . . 7 . . . Cannon . | . . . . . . . . . Launcher 22 | . . . . . 8 2 2 10 Special . | . . . . . . . . . Kinetic 43 | 16 20 . . . 7 . . . Thermal . | . . . . . . . . . Explosive 22 | . . . . . 8 2 2 10 Electromagnetic . | . . . . . . . . . Robot Hit Streak 5 | 3 5 . . . 2 . 2 4 Robot Miss Streak 3 | 3 2 . . . 3 . 1 2 Penetration Max . | . . . . . . . . . Secondary Targets . | . . . . . . . . . Shots Hit Robots 118 | 8 15 . . 11 47 9 1 27 Core Hits 78 | 3 6 . . 3 33 1 8 24 Critical Kills 2 | . 1 . . 1 . . . . Critical Parts Destroyed 9 | . 1 . . 2 4 2 . . Critical Strikes 16 | . 2 . . 3 7 3 . 1 Destroy 1 | . 1 . . . . . . . Smash 10 | . 1 . . 3 4 2 . . Sever 4 | . . . . . 3 1 . . Impale 1 | . . . . . . . . 1 Melee Attacks 181 | . 5 . . 17 91 21 6 41 Impact 73 | . 5 . . 17 35 11 4 1 Slashing 78 | . . . . . 56 10 2 10 Piercing 30 | . . . . . . . . 30 Sneak Attacks 17 | . . . . 3 10 4 . . Combat Hostiles . | . . . . . . . . . Follow-up Attacks 24 | . . . . 2 9 5 . 8 Damage Inflicted 5828 | 79 252 . . 391 2774 597 287 1448 Guns 310 | 79 195 . . . 36 . . . Cannons . | . . . . . . . . . Explosions 1587 | . . . . . 652 . 287 648 Melee 3931 | . 57 . . 391 2086 597 . 800 Ramming . | . . . . . . . . . Kinetic 310 | 79 195 . . . 36 . . . Thermal . | . . . . . . . . . Explosive 1587 | . . . . . 652 . 287 648 Electromagnetic . | . . . . . . . . . Impact 1245 | . 57 . . 391 488 309 . . Slashing 2145 | . . . . . 1598 288 . 259 Piercing 541 | . . . . . . . . 541 Highest Corruption 22 | . . . . . 22 . 2 2 Average Corruption 9 | . . . . . 14 . 2 2 Corruption Purged . | . . . . . . . . . Corruption Blocked . | . . . . . . . . . Effects 44 | . . . . . 40 . 1 3 Message Errors 8 | . . . . . 7 . 1 . Matter Fused 11 | . . . . . 10 . . 1 Heat Flow Errors 5 | . . . . . 5 . . . Energy Discharges 3 | . . . . . 3 . . . Parts Rejected 2 | . . . . . 2 . . . Parts Fused 3 | . . . . . 2 . . 1 Data Loss (minor) 7 | . . . . . 7 . . . Data Loss (major) 3 | . . . . . 2 . . 1 Misfires 1 | . . . . . 1 . . . Misdirections 1 | . . . . . 1 . . . Overload Shots . | . . . . . . . . . Overflow Damage 686 | . 28 . . 128 332 176 . 22 Projectiles . | . . . . . . . . . Explosions . | . . . . . . . . . Melee 686 | . 28 . . 128 332 176 . 22 Knockbacks 5 | . . . . 2 2 1 . . Impact 5 | . . . . 2 2 1 . . Kinetic . | . . . . . . . . . Secondary . | . . . . . . . . . Self-Inflicted Damage 128 | . . . . . 123 . . 5 Shots 4 | . . . . . 3 . . 1 Rammed . | . . . . . . . . . Targets Rammed . | . . . . . . . . . Kicked . | . . . . . . . . . Crushed . | . . . . . . . . . Highest Temperature 226 | . 2 . . 7 226 . . 20 Average Temperature 61 | . 2 . . 7 75 . . 8 Received Heat Transfer 1581 | . 66 . . 90 372 18 . 1035 Siege Activations . | . . . . . . . . . Robots Corrupted 7 | . 1 . . 1 2 3 . . Combat Hostiles 4 | . 1 . . . 2 1 . . Parts Fried 5 | . 1 . . 2 1 1 . . Impact Corruptions 18 | . 1 . . 3 9 5 . . Robots Melted . | . . . . . . . . . Combat Hostiles . | . . . . . . . . . Parts Melted . | . . . . . . . . . Heat Transferred . | . . . . . . . . . Parts Sabotaged . | . . . . . . . . . Parts Stolen . | . . . . . . . . . Parts Stripped . | . . . . . . . . . Power Chain Reactions . | . . . . . . . . . Alert | -11 -10 -9 -9 -8 -7 -6 -5 -5 ------- Run | Yrd Mat Mat Min Mat Fac Fac Fac Ext Peak Influence 566 | 5 158 68 26 114 566 454 295 372 Initial 254 | . 3 66 26 9 51 254 148 144 Average 228 | 1 62 66 26 52 290 342 261 275 Maximum Alert Level 2 | . . . . . 2 2 1 1 Low Security (%) 47 | 100 100 100 100 100 42 . 15 26 Level 1 32 | . . . . . 13 70 84 73 Level 2 19 | . . . . . 43 29 . . Level 3 . | . . . . . . . . . Level 4 . | . . . . . . . . . Level 5 . | . . . . . . . . . High Security . | . . . . . . . . . Max Security . | . . . . . . . . . Squads Dispatched 14 | . 2 1 . 1 5 2 1 2 Investigation 5 | . 1 1 . 1 . 1 . 1 Extermination 1 | . . . . . 1 . . . Reinforcement 8 | . 1 . . . 4 1 1 1 Assault . | . . . . . . . . . Garrison . | . . . . . . . . . Intercept . | . . . . . . . . . Searches Triggered 1 | . . . . . . 1 . . Construction Impeded 1 | . . . . . 1 . . . Haulers Reinforced 1 | . . . . . 1 . . . Active Scanning Responses . | . . . . . . . . . Cargo Convoy Interrupts 1 | . . . . . 1 . . . Stealth | -11 -10 -9 -9 -8 -7 -6 -5 -5 --------- Run | Yrd Mat Mat Min Mat Fac Fac Fac Ext Distress Signals 6 | . . . . . . 1 . 5 Communications Jammed . | . . . . . . . . . Distress Signals . | . . . . . . . . . Times Spotted 105 | . 9 . . 7 45 8 7 29 Peak Tracking Total 12 | . 5 . . 8 9 3 4 12 Tactical Retreats 17 | . 1 . . 1 7 2 1 5 Traps | -11 -10 -9 -9 -8 -7 -6 -5 -5 ------- Run | Yrd Mat Mat Min Mat Fac Fac Fac Ext Traps Triggered 6 | . 1 . . . 1 1 1 2 Indirectly . | . . . . . . . . . Trap Hack Attempts . | . . . . . . . . . Triggered . | . . . . . . . . . Disarmed . | . . . . . . . . . Reprogrammed . | . . . . . . . . . Reused . | . . . . . . . . . Traps Extracted . | . . . . . . . . . Installed . | . . . . . . . . . Triggered . | . . . . . . . . . Machines | -11 -10 -9 -9 -8 -7 -6 -5 -5 ---------- Run | Yrd Mat Mat Min Mat Fac Fac Fac Ext Machines Disabled 7 | . . . . . 4 . 1 2 Max in Single Turn 4 | . . . . . 4 . 1 2 Machines Repaired . | . . . . . . . . . Machines Dismantled . | . . . . . . . . . Machines Sabotaged . | . . . . . . . . . Overloaded Fab Kills . | . . . . . . . . . Hacking | -11 -10 -9 -9 -8 -7 -6 -5 -5 --------- Run | Yrd Mat Mat Min Mat Fac Fac Fac Ext Machines Accessed 20 | . 2 1 . 3 8 5 . 1 Terminals 10 | . 2 . . 2 2 3 . 1 Fabricators 2 | . . . . . 1 1 . . Repair Stations . | . . . . . . . . . Recycling Units 5 | . . . . 1 3 1 . . Scanalyzers 2 | . . 1 . . 1 . . . Garrison Access 1 | . . . . . 1 . . . Total Hacks 40 | . 9 3 . 6 11 9 . 2 Successful 12 | . 5 2 . 2 1 2 . . Failed 28 | . 4 1 . 4 10 7 . 2 Catastrophic 10 | . . . . 2 5 2 . 1 Database Lockouts . | . . . . . . . . . Manual 18 | . 8 . . 2 3 5 . . Terminals 22 | . 9 . . 3 3 5 . 2 Fabricators 4 | . . . . . 1 3 . . Repair Stations . | . . . . . . . . . Recycling Units 8 | . . . . 3 4 1 . . Scanalyzers 5 | . . 3 . . 2 . . . Garrison Access 1 | . . . . . 1 . . . Terminal Hacks 1 | . 1 . . . . . . . Level Access Points 1 | . 1 . . . . . . . Fabricator Hacks . | . . . . . . . . . Repair Station Hacks . | . . . . . . . . . Recycling Unit Hacks 3 | . . . . 1 1 1 . . Report Inventory 3 | . . . . 1 1 1 . . Scanalyzer 2 | . . 2 . . . . . . Insert Component 1 | . . 1 . . . . . . Analyze 1 | . . 1 . . . . . . Garrison Access Hacks . | . . . . . . . . . Unauthorized Hacks 6 | . 4 . . 1 . 1 . . Terminals 6 | . 4 . . 1 . 1 . . Assimilate 1 | . 1 . . . . . . . Botnet 4 | . 2 . . 1 . 1 . . Operators 1 | . 1 . . . . . . . Fabricators . | . . . . . . . . . Repair Stations . | . . . . . . . . . Recycling Units . | . . . . . . . . . Scanalyzers . | . . . . . . . . . Garrison Access . | . . . . . . . . . Data Cores Recovered . | . . . . . . . . . Used . | . . . . . . . . . Hacking Detections 18 | . 2 1 . 3 7 4 . 1 Full Trace Events 3 | . . 1 . 1 . . . 1 Feedback Events . | . . . . . . . . . Feedback Blocked . | . . . . . . . . . Robot Schematics Acquired . | . . . . . . . . . Robots Built . | . . . . . . . . . Authchips . | . . . . . . . . . Time . | . . . . . . . . . Total Robot Build Rating . | . . . . . . . . . Part Schematics Acquired 1 | . . 1 . . . . . . Parts Built . | . . . . . . . . . Authchips . | . . . . . . . . . Time . | . . . . . . . . . Total Part Build Rating . | . . . . . . . . . Parts Repaired . | . . . . . . . . . Time . | . . . . . . . . . Parts Recycled . | . . . . . . . . . Recycled Matter . | . . . . . . . . . Retrieved Matter . | . . . . . . . . . Retrieved Components . | . . . . . . . . . Parts Scanalyzed 1 | . . 1 . . . . . . Part Schematics Acquired 1 | . . 1 . . . . . . Parts Damaged . | . . . . . . . . . Bothacking | -11 -10 -9 -9 -8 -7 -6 -5 -5 ------------ Run | Yrd Mat Mat Min Mat Fac Fac Fac Ext Used RIF Installer . | . . . . . . . . . Robots Hacked . | . . . . . . . . . Non-combat . | . . . . . . . . . Combat . | . . . . . . . . . Robot Hacks Applied . | . . . . . . . . . Relay Couplers Released . | . . . . . . . . . Fabnet Peak Effective % . | . . . . . . . . . Robots Rewired 4 | . . . . . . . . 4 Allies Hacked . | . . . . . . . . . Hacks Repelled . | . . . . . . . . . Allies | -11 -10 -9 -9 -8 -7 -6 -5 -5 -------- Run | Yrd Mat Mat Min Mat Fac Fac Fac Ext Total Allies 4 | . . . . . . . . 4 Largest Group 3 | . . . . . . . . 3 Highest-Rated Group 76 | . . . . . . . . 76 Highest-Rated Ally 31 | . . . . . . . . 31 Total Orders . | . . . . . . . . . Ally Attacks 13 | . . . . . . . . 13 Total Damage 294 | . . . . . . . . 294 Kills . | . . . . . . . . . Allies Corrupted . | . . . . . . . . . Allies Melted . | . . . . . . . . . Intel | -11 -10 -9 -9 -8 -7 -6 -5 -5 ------- Run | Yrd Mat Mat Min Mat Fac Fac Fac Ext Robot Analysis Total . | . . . . . . . . . Derelict Logs Recovered . | . . . . . . . . . Drone Launches . | . . . . . . . . . Drone Recoveries . | . . . . . . . . . Exploration | -11 -10 -9 -9 -8 -7 -6 -5 -5 ------------- Run | Yrd Mat Mat Min Mat Fac Fac Fac Ext Turns Passed 2751 | 131 376 54 62 111 987 383 167 480 Spaces Moved 3473 | 66 223 75 112 129 1475 718 315 360 Core 81 | 15 . . . . . . . 66 Treads 165 | 51 114 . . . . . . . Legs 109 | . 109 . . . . . . . Wheels 28 | . . . . . . . . 28 Hover 3090 | . . 75 112 129 1475 718 315 266 Flight . | . . . . . . . . . Fastest Speed 34 | 50 120 52 52 40 38 40 34 34 Average Speed 55 | 138 140 52 52 44 44 44 40 71 Slowest Speed 200 | 160 190 52 52 48 105 102 100 200 Overloaded Moves . | . . . . . . . . . Propulsion Burnouts . | . . . . . . . . . Robots Hopped . | . . . . . . . . . Cave-ins Triggered 1 | . . . . . 1 . . . Exploration Rate (%) 27 | 5 48 10 40 16 50 25 11 38 Regions Visited 8 Branch Regions 2 Pre-discovered Areas . | . . . . . . . . . Known Exits Taken 1 | . 1 . . . . . . . Unknown Exits Taken 7 | 1 . 1 1 1 1 1 1 . Scrap Searched . | . . . . . . . . . Spaces Dug 44 | . 3 . . 3 16 15 5 2 Terrain Destroyed 189 | . 3 . . 3 72 18 10 83 Melee 35 | . 3 . . 3 16 6 5 2 Projectile . | . . . . . . . . . AOE 154 | . . . . . 56 12 5 81 Terrain Rammed . | . . . . . . . . . Walls Destroyed . | . . . . . . . . . Machines Disabled . | . . . . . . . . . Actions | -11 -10 -9 -9 -8 -7 -6 -5 -5 --------- Run | Yrd Mat Mat Min Mat Fac Fac Fac Ext Total 4007 | 89 257 90 117 160 1666 758 342 528 Wait 88 | 7 2 . . 5 52 7 1 14 Move 3465 | 65 222 74 111 128 1474 717 314 360 Hop . | . . . . . . . . . Pick Up 43 | 2 9 3 3 4 13 5 3 1 Fast Attach 30 | 6 2 . . 1 12 2 6 1 Attach 32 | 1 . 4 . 2 6 5 3 11 Detach 12 | . . . . . 2 1 3 6 Swap 23 | . 2 4 . 2 9 4 2 . Drop 44 | . 5 5 3 5 16 5 3 2 Fire 45 | 8 10 . . . 14 2 2 9 Melee 131 | . 5 . . 13 68 10 5 30 Ram . | . . . . . . . . . Kick . | . . . . . . . . . Crush . | . . . . . . . . . Escape Stasis 26 | . . . . . . . . 26 Rewire 68 | . . . . . . . . 68 Trap . | . . . . . . . . . Miscellaneous . | . . . . . . . . . Route ------- -11/Scrapyard -10/Materials (discovered 4 exits: *Mat x3 / [*Min]) -9/Materials -9/Mines -8/Materials -7/Factory -6/Factory -5/Factory -5/Extension History --------- Turn | Location | Event 10 | -11/Scrapyard | Discovered new exit (range 15) 132 | -11/Scrapyard | Entered Materials 311 | -10/Materials | Build established: Mutant 312 | -10/Materials | Discovered new exit (range 7) 404 | -10/Materials | Identified exit to Materials 508 | -10/Materials | Entered another Materials area 508 | -9/Materials | Evolved 2 slots: Propulsion x1, Utility x1 560 | -9/Materials | Discovered new exit (range 6) 562 | -9/Materials | Entered Mines 594 | -9/Mines | Received a Rocket Launcher from a helpful Derelict 616 | -9/Mines | Discovered new exit (range 15) 624 | -9/Mines | Entered Materials 624 | -8/Materials | Evolved 2 slots: Propulsion x1, Weapon x1 734 | -8/Materials | Discovered new exit (range 3) 735 | -8/Materials | Entered Factory 735 | -7/Factory | Evolved 2 slots: Utility x1, Weapon x1 746 | -7/Factory | System corruption reached 10% 1069 | -7/Factory | Build established: Gladiator 1454 | -7/Factory | Crushed by falling debris 1488 | -7/Factory | Cargo convoy interrupted 1654 | -7/Factory | Discovered new exit (range 14) 1722 | -7/Factory | Entered another Factory area 1722 | -6/Factory | Evolved 2 slots: Utility x2 2043 | -6/Factory | Discovered new exit (range 6) 2072 | -6/Factory | Search patrols dispatched 2105 | -6/Factory | Entered another Factory area 2105 | -5/Factory | Evolved 2 slots: Propulsion x1, Utility x1 2268 | -5/Factory | Discovered new exit (range 8) 2272 | -5/Factory | Entered Extension 2368 | -5/Extension | Lost 3 parts (1n1u1w) 2636 | -5/Extension | Lost 3 allies 2661 | -5/Extension | Core integrity fell below 50% 2680 | -5/Extension | Released all parts (5) 2694 | -5/Extension | Lost 8 parts (1p4n3u) 2742 | -5/Extension | Core integrity fell below 20% 2752 | -5/Extension | Destroyed by Y-64 Sentinel with Wave Gun Last Messages --------------- 02680_ Released Lrg. Storage Unit. 02680_ Released Imp. Melee Analysis Suite. 02680_ Released Spear. 02686_ O-24 Administrator: "IFF HANDSHAKE FAILED. SECURING TERMINAL." 02687_ W-25 Informer sends out distress signal. 02689_ O-24 Administrator uses terminal to summon reinforcements. 02689_ ALERT: Hostiles spotted, dispatching reinforcements to Terminal E004. 02689_ O-24 Administrator locks terminal. 02711_ Dropped Force Booster. 02711_ Acquired Antigrav System. 02718_ Acquired Mic. Fission Core. 02721_ Great Axe follow-up attack on G-50 Soldier. 02727_ Critical hit (Burn: +37). 02738_ Antigrav System destroyed. 02741_ Great Axe follow-up attack on G-67 Veteran. 02744_ Spear destroyed. 02750_ Slug penetrates Wall. 02751_ Great Axe destroyed. 02752_ Critical hit (Burn: +37). Map ----- +----------------------------------------------------+ | ?????????????????????????????????????????????????? | | ??#########??????????????????????????????????????? | | ### #???#######????????????????????????????? | | ##### #????????????????????????????? | | T #####????????????????????????? | | T "" #????????????????????????? | | ### #????????????????????????? | | ##### #?# #????????????????????????? | | ## #???#######?# #????????????????????????? | | ##########???????????# #????????????????????????? | | #????????????????????# ####?????????????????????? | | #????????????????????# #?????????????????????? | | #????????????????????# #?????????????????????? | | ???????????######## #?????????????????????? | | #???????????+ #?????????????????????? | | ?????????????########### #?????????????????????? | | ""???????????????????????# #?????????????????????? | | ?????????????????????????# #?????????????????????? | | ?????????????????????????# #?????????????????????? | | ?????????????????????????#%#?????????????????????? | | ?????????????????????????# #?????????????????????? | | ?????????????????????###?# #?????????????????????? | | ??????????????????####T### #?????????????????????? | | ????????????????### T g=#R#?????????????????????? | | ????????????????#"" [ #Y#?????????????????????? | | ????????????????#"T g@ #?????????????????????? | | ????????????????#""!! !#g#?????????????????????? | | ????????????????###!! # #?????????????????????? | | ??????????????????#!! # #?????????????????????? | | ??????????????????##" "### #?????????????????????? | | ???????????????????#"R"#?# #?????????????????????? | | ???????????????????#"""#?# #?????????????????????? | | ???????????????????#####?" "?????????????????????? | | ?????????????????????????" "?????????????????????? | | ????????????????????????? ?????????????????????? | | ????????????????????????? ?????????????????????? | | ?????????????????????????? ??????????????????????? | | ?????????????????????????? ??????????????????????? | | ?????????????????????????? ??????????????????????? | | ?????????????????????????? ??????????????????????? | | ?????????????????????????????????????????????????? | | ?????????????????????????????????????????????????? | | ?????????????????????????????????????????????????? | | ?????????????????????????????????????????????????? | | ?????????????????????????????????????????????????? | | ?????????????????????????????????????????????????? | | ?????????????????????????????????????????????????? | | ?????????????????????????????????????????????????? | | ?????????????????????????????????????????????????? | | ?????????????????????????????????????????????????? | +----------------------------------------------------+ Best States ------------- Heat Dissipation 40 Energy Generation 15 Energy Capacity 160 Matter Stores 300 Matter Capacity 300 Sight Range 16 Robot Scan Range 14 Terrain Scan Density 10 Additional Mass Support 6 Armor Coverage 450 Propulsion Shielding 66 Evasion (%) 65 Melee Accuracy 12 Recoil Reduction 2 Defensive Hacking 14 Item Schematics ----------------- Imp. Hover Unit | -9/Materials | Scanalyzed Robot Schematics ------------------ None Fabricated ------------ Nothing Alien Tech Used ----------------- None Achievements -------------- None Challenges ------------ None Game ------ Seed SubdwellerBlastCore Manual? 0 Play Time 01:00:38 Cumulative 89.7 hours Start 2024.10.01 @ 15:01:34 End 2024.10.01 @ 20:17:16 Sessions 3 Manual Loads 0 Difficulty Rogue Special Mode None Game No. 119 Rogue 119 Adventurer 0 Explorer 0 Win Type - Total 0 Types 0/0/0/0/0/0/0/0/0 Lore% 38 Gallery% 39 Achievement% 39 Wizard Run 0 Options --------- Layout 0 ASCII 0 Keyboard 0 Movement Arrows Keybinds 0 Fullscreen 2 Font 18/SmallcapsGlow Map View 76x50 Zoom Use 0% Tactical HUD 1 Map Filters NONE Filters NONE Steam 1 RUN: 4f0dfdf5-0a35-4e76-a165-bbb4c1953d6b